bitfinex-derivatives/quotes_SOLF0:USTF0_20250309
["timestamp","ask_amount","ask_price","bid_price","bid_amount"]
[1741484118726,26.21146454,137.78,137.76,0.04675385]
[1741484119026,0.05146454,137.78,137.76,0.04675385]
[1741484119822,0.05146454,137.78,137.76,7.30665385]
[1741484120727,0.05146454,137.78,137.76,0.04675385]
[1741484123922,0.05146454,137.78,137.76,7.30665385]
[1741484124124,0.05146454,137.78,137.76,0.04675385]
[1741484124525,7.31106454,137.78,137.76,0.04675385]
[1741484124922,7.2597,137.77,137.76,0.04675385]
[1741484126030,7.2597,137.77,137.76,5.385e-05]
[1741484131633,33.51086454,137.78,137.76,5.385e-05]
[1741484131934,0.05146454,137.78,137.76,5.385e-05]
[1741484133535,7.2597,137.77,137.76,5.385e-05]
[1741484134239,7.31066454,137.78,137.76,5.385e-05]
[1741484135336,7.2597,137.77,137.76,5.385e-05]
[1741484140540,0.05146454,137.78,137.76,7.26015385]
[1741484141439,7.31096454,137.78,137.76,5.385e-05]
[1741484144741,0.05146454,137.78,137.76,5.385e-05]
[1741484145441,7.31076454,137.78,137.76,5.385e-05]
[1741484146639,7.2597,137.77,137.76,5.385e-05]
[1741484147245,18.73597615,137.77,137.76,5.385e-05]
[1741484147645,33.41086454,137.78,137.76,5.385e-05]
[1741484148241,26.15146454,137.78,137.76,5.385e-05]
[1741484148444,7.2597,137.77,137.76,5.385e-05]
[1741484154446,25.18689066,137.77,137.76,5.385e-05]
[1741484154645,17.92719066,137.77,137.67,17.92719066]
[1741484154850,17.92719066,137.77,137.66,28.0184]
[1741484154851,17.92719066,137.75,137.66,28.0184]
[1741484155051,26.08,137.74,137.67,17.92719066]
[1741484155245,7.2627,137.72,137.68,7.2643]
[1741484155959,0.05546965,137.71,137.69,0.05351505]
[1741484156360,0.05546965,137.71,137.69,7.31731505]
[1741484156559,0.05546965,137.71,137.69,0.05351505]
[1741484159754,0.05546965,137.71,137.7,7.2634]
[1741484159961,0.05546965,137.71,137.69,0.05351505]
[1741484161057,0.05546965,137.71,137.7,7.2634]
[1741484161261,0.05546965,137.71,137.69,0.05351505]
[1741484162563,0.05546965,137.71,137.7,7.2634]
[1741484162763,26.08,137.74,137.69,17.98070571]
[1741484162964,26.1,137.77,137.7,2.0232]
[1741484163264,7.2603,137.76,137.72,7.2618]
[1741484163458,26.1,137.77,137.7,2.0232]
[1741484163763,26.1,137.77,137.72,7.2623]
[1741484163968,0.04768843,137.75,137.72,0.05579894]
[1741484165065,0.04768843,137.75,137.73,7.2614]
[1741484165365,0.04768843,137.75,137.72,0.05579894]
[1741484165664,7.30888843,137.75,137.72,0.05579894]
[1741484166057,0.04768843,137.75,137.72,0.05579894]
[1741484166365,26.08,137.74,137.72,0.05579894]
[1741484168661,7.2618,137.73,137.72,0.05579894]
[1741484169366,18.74668146,137.73,137.72,0.05579894]
[1741484169765,7.2634,137.7,137.67,18.74968146]
[1741484170163,11.48488146,137.69,137.65,11.48488146]
[1741484170566,7.2646,137.68,137.65,11.48488146]
[1741484170769,11.48488146,137.69,137.65,11.48488146]
[1741484171068,0.04673415,137.68,137.65,11.53086408]
[1741484171366,0.04673415,137.68,137.67,11.48488146]
[1741484171767,0.04673415,137.68,137.67,18.74988146]
[1741484172367,26.08,137.71,137.69,7.2635]
[1741484172669,26.1,137.74,137.69,11.48488146]
[1741484172966,11.48488146,137.75,137.71,11.48488146]
[1741484173471,0.04657557,137.74,137.72,0.05184989]
[1741484174669,0.04657557,137.74,137.72,7.31384989]
[1741484178277,7.2618,137.73,137.72,0.05184989]
[1741484179675,7.2618,137.73,137.66,28.0141]
[1741484179676,26.14657557,137.74,137.66,28.0141]
[1741484179973,7.2634,137.7,137.67,7.2649]
[1741484180173,44.03592786,137.74,137.66,28.0141]
[1741484180772,7.2637,137.7,137.66,35.2793]
[1741484180970,7.2637,137.7,137.69,0.05010372]
[1741484183173,7.2637,137.7,137.69,3.72e-06]
[1741484184278,25.19962786,137.7,137.69,3.72e-06]
[1741484186382,7.2637,137.7,137.69,3.72e-06]
[1741484188177,44.08518053,137.71,137.6,28.0234]
[1741484188376,7.2669,137.64,137.6,35.2918]
[1741484188578,26.16,137.66,137.6,28.0234]
[1741484188782,7.2663,137.65,137.61,7.2678]
[1741484189175,26.16,137.66,137.6,1.8834]
[1741484189378,7.31912922,137.64,137.61,0.05412672]
[1741484189875,0.05222922,137.64,137.61,0.05412672]
[1741484190477,7.31902922,137.64,137.61,0.05412672]
[1741484190674,0.05222922,137.64,137.61,0.05412672]
[1741484190984,0.05222922,137.64,137.61,7.32192672]
[1741484191488,0.05222922,137.64,137.61,0.05412672]
[1741484192978,7.2674,137.63,137.61,0.05412672]
[1741484193376,0.05222922,137.64,137.61,0.05412672]
[1741484193883,7.2675,137.63,137.61,0.05412672]
[1741484194083,0.05222922,137.64,137.61,0.05412672]
[1741484194482,7.2675,137.63,137.61,0.05412672]
[1741484195079,7.31912922,137.64,137.61,0.05412672]
[1741484195284,0.05222922,137.64,137.61,0.05412672]
[1741484196188,7.2675,137.63,137.61,0.05412672]
[1741484196988,0.05222922,137.64,137.61,0.05412672]
[1741484197186,17.98815708,137.64,137.61,0.05412672]
[1741484197389,11.50140985,137.62,137.61,0.05412672]
[1741484197588,26.22,137.63,137.61,0.05412672]
[1741484198289,11.55363907,137.64,137.61,7.32192672]
[1741484198493,11.55363907,137.64,137.61,0.05412672]
[1741484199095,0.05222922,137.64,137.61,11.55553657]
[1741484200495,0.05222922,137.64,137.62,7.2672]
[1741484201093,0.05222922,137.64,137.61,18.82343657]
[1741484201399,0.05222922,137.64,137.61,11.55553657]
[1741484202096,0.05222922,137.64,137.61,0.05412672]
[1741484202298,11.55363907,137.64,137.61,0.05412672]
[1741484202899,7.2676,137.62,137.61,0.05412672]
[1741484203396,7.2675,137.63,137.61,0.05412672]
[1741484204302,11.55363907,137.64,137.61,0.05412672]
[1741484204798,7.2674,137.63,137.61,0.05412672]
[1741484205796,7.2676,137.62,137.61,0.05412672]
[1741484215611,7.2673,137.63,137.61,0.05412672]
[1741484215811,11.55363907,137.64,137.61,0.05412672]
[1741484216312,18.82063907,137.64,137.61,0.05412672]
[1741484216609,7.2672,137.63,137.61,0.05412672]
[1741484218707,7.2676,137.62,137.61,0.05412672]
[1741484222019,11.55363907,137.64,137.61,0.05412672]
[1741484222020,0.05222922,137.64,137.61,0.05412672]
[1741484224715,0.05222922,137.64,137.62,7.2673]
[1741484224922,0.05222922,137.64,137.62,11.50140985]
[1741484225321,0.05222922,137.64,137.63,7.2671]
[1741484226417,0.05222922,137.64,137.61,6.01172672]
[1741484227118,0.05222922,137.64,137.61,13.27952672]
[1741484228527,7.31902922,137.64,137.61,13.27952672]
[1741484229521,0.05222922,137.64,137.61,6.01172672]
[1741484229922,0.05222922,137.64,137.61,4.10982672]
[1741484230526,7.31892922,137.64,137.61,11.37762672]
[1741484230729,0.05222922,137.64,137.61,11.37762672]
[1741484231823,0.05222922,137.64,137.61,4.10982672]
[1741484232021,11.55363907,137.64,137.61,0.05412672]
[1741484233228,7.2676,137.62,137.61,0.05412672]
[1741484240929,26.18,137.63,137.61,0.05412672]
[1741484241135,0.05222922,137.64,137.62,11.50140985]
[1741484242227,0.05222922,137.64,137.62,18.76870985]
[1741484243538,0.05222922,137.64,137.63,7.2671]
[1741484248447,11.50140985,137.69,137.66,7.2651]
[1741484249149,18.76550985,137.69,137.66,7.2651]
[1741484249443,11.50140985,137.69,137.66,7.2651]
[1741484249646,11.54907455,137.69,137.66,7.32075828]
[1741484250239,0.0476647,137.69,137.66,11.55706813]
[1741484250641,0.0476647,137.69,137.66,18.82236813]
[1741484250848,0.0476647,137.69,137.66,11.55706813]
[1741484252249,0.0476647,137.69,137.68,7.2645]
[1741484253950,0.0476647,137.69,137.68,18.76590985]
[1741484255149,0.0476647,137.69,137.68,11.50140985]
[1741484257048,0.0476647,137.69,137.68,18.76590985]
[1741484261352,26.2,137.77,137.68,41.34140985]
[1741484261558,11.50140985,137.76,137.72,11.50140985]
[1741484261856,33.4599,137.77,137.73,7.2617]
[1741484262044,7.2599,137.77,137.73,7.2617]
[1741484262447,0.04979978,137.76,137.74,0.04875297]
[1741484264256,26.16,137.75,137.74,5.297e-05]
[1741484264753,33.4208,137.75,137.74,5.297e-05]
[1741484271865,7.2654,137.67,137.66,11.50140985]
[1741484274066,0.05005651,137.68,137.66,11.50140985]
[1741484276968,15.53420985,137.75,137.66,37.62140985]
[1741484277169,37.62140985,137.75,137.69,11.50140985]
[1741484277371,7.2627,137.72,137.69,11.50140985]
[1741484277777,37.62140985,137.75,137.69,11.50140985]
[1741484277980,7.2628,137.72,137.69,11.50140985]
[1741484278273,0.05312306,137.73,137.71,11.55638945]
[1741484278474,0.05312306,137.73,137.71,18.76430985]
[1741484278672,0.05312306,137.73,137.71,18.81814484]
[1741484279472,0.05312306,137.73,137.71,11.55524484]
[1741484281079,7.2624,137.72,137.71,11.55524484]
[1741484281276,0.05312306,137.73,137.71,11.55524484]
[1741484281779,0.05312306,137.73,137.71,0.05383499]
[1741484282177,0.05312306,137.73,137.71,11.55524484]
[1741484283380,0.05312306,137.73,137.72,7.2624]
[1741484286576,11.50140985,137.79,137.74,7.2612]
[1741484286771,91.64366694,137.81,137.75,11.50140985]
[1741484287178,117.72366694,137.81,137.75,18.76170985]
[1741484287481,7.2592,137.79,137.75,18.76170985]
[1741484287682,7.31475538,137.79,137.76,0.05452504]
[1741484288587,0.05555538,137.79,137.77,11.50140985]
[1741484289679,7.2597,137.77,137.76,0.05452504]
[1741484292483,18.76110985,137.77,137.76,0.05452504]
[1741484295286,11.50140985,137.77,137.71,11.50140985]
[1741484295486,11.50140985,137.75,137.71,11.50140985]
[1741484295678,37.54140985,137.75,137.71,11.50140985]
[1741484295878,7.2622,137.73,137.69,258.36520985]
[1741484296080,37.54140985,137.75,137.69,251.10140985]
[1741484296276,0.05573974,137.73,137.71,0.05461618]
[1741484297078,7.2628,137.72,137.71,0.05461618]
[1741484297283,7.2628,137.72,137.71,1.618e-05]
[1741484297683,33.3628,137.72,137.71,1.618e-05]
[1741484299389,26.1,137.72,137.71,1.618e-05]
[1741484299691,7.31773974,137.73,137.71,1.618e-05]
[1741484300683,7.2624,137.72,137.71,1.618e-05]
[1741484301186,7.31773974,137.73,137.71,1.618e-05]
[1741484302692,0.05573974,137.73,137.71,1.618e-05]
[1741484302989,0.05573974,137.73,137.72,7.2624]
[1741484304493,0.05573974,137.73,137.71,1.618e-05]
[1741484307595,7.2624,137.72,137.71,1.618e-05]
[1741484309499,7.31773974,137.73,137.71,1.618e-05]
[1741484310097,7.2624,137.72,137.71,1.618e-05]
[1741484310498,0.05573974,137.73,137.71,1.618e-05]
[1741484311495,7.2624,137.72,137.71,1.618e-05]
[1741484317305,0.05573974,137.73,137.71,1.618e-05]
[1741484317507,7.31803974,137.73,137.71,1.618e-05]
[1741484318706,0.05573974,137.73,137.71,1.618e-05]
[1741484319299,0.05573974,137.73,137.72,7.2624]
[1741484321697,138.29740349,137.8,137.72,26.06]
[1741484321900,138.29740349,137.8,137.72,30.087]
[1741484321901,136.25560349,137.8,137.72,30.087]
[1741484322103,7.2595,137.78,137.72,30.087]
[1741484322304,7.2595,137.78,137.74,7.261]
[1741484322804,0.05342702,137.77,137.75,7.31550761]
[1741484323205,0.05342702,137.77,137.75,18.78853689]
[1741484323405,0.05342702,137.77,137.76,7.2603]
[1741484331112,0.05342702,137.77,137.75,37.54803689]
[1741484331813,7.2603,137.76,137.75,11.52803689]
[1741484333122,7.2603,137.76,137.75,0.05500761]
[1741484339026,7.2603,137.76,137.75,7.61e-06]
[1741484343326,18.73332928,137.76,137.75,7.61e-06]
[1741484343623,22.35332928,137.76,137.75,7.61e-06]
[1741484343829,24.33902928,137.76,137.75,7.61e-06]
[1741484345823,17.07872928,137.76,137.62,1.26382306]
[1741484346026,11.47302928,137.71,137.65,11.47302928]
[1741484346325,25.92,137.7,137.65,11.47302928]
[1741484346525,7.2649,137.68,137.65,11.47302928]
[1741484346818,25.92,137.7,137.65,11.47302928]
[1741484347022,0.04685681,137.68,137.65,18.78550302]
[1741484347325,0.04685681,137.68,137.65,11.51950302]
[1741484348119,7.31145681,137.68,137.65,11.51950302]
[1741484351430,7.2655,137.66,137.65,0.04647374]
[1741484352330,0.04685681,137.68,137.65,0.04647374]
[1741484352632,7.2652,137.67,137.65,0.04647374]
[1741484353028,7.2655,137.66,137.65,0.04647374]
[1741484356434,7.2676,137.62,137.61,11.47302928]
[1741484358133,7.2682,137.61,137.6,0.05515186]
[1741484358331,11.52657833,137.63,137.6,0.05515186]
[1741484358836,7.2682,137.61,137.6,0.05515186]
[1741484360935,7.2679,137.62,137.6,0.05515186]
[1741484361730,0.05354905,137.63,137.6,0.05515186]
[1741484361935,0.05354905,137.63,137.6,11.52818114]
[1741484362834,0.05354905,137.63,137.61,7.2678]
[1741484363830,7.32074905,137.63,137.6,0.05515186]
[1741484364037,0.05354905,137.63,137.6,0.05515186]
[1741484364239,11.52657833,137.63,137.6,0.05515186]
[1741484365338,7.2682,137.61,137.6,0.05515186]
[1741484369943,7.32084905,137.63,137.6,0.05515186]
[1741484370140,7.32084905,137.63,137.61,11.47302928]
[1741484370341,0.05354905,137.63,137.61,11.47302928]
[1741484370542,0.05354905,137.63,137.6,0.05515186]
[1741484371544,7.2681,137.62,137.6,0.05515186]
[1741484372042,7.2676,137.62,137.6,0.05515186]
[1741484372944,7.2682,137.61,137.6,0.05515186]
[1741484377742,7.2679,137.62,137.6,0.05515186]
[1741484380350,33.26084905,137.63,137.6,7.32385186]
[1741484380551,7.32084905,137.63,137.6,7.32385186]
[1741484380849,0.05354905,137.63,137.6,0.05515186]
[1741484381051,7.2679,137.62,137.6,0.05515186]
[1741484381640,0.05354905,137.63,137.6,0.05515186]
[1741484381641,7.2682,137.61,137.6,0.05515186]
[1741484383744,18.74122928,137.61,137.6,5.186e-05]
[1741484388153,7.2714,137.55,137.51,11.47302928]
[1741484388347,37.61302928,137.57,137.51,11.47302928]
[1741484388548,7.272,137.54,137.51,11.47302928]
[1741484388845,37.61302928,137.57,137.51,11.47302928]
[1741484389354,0.05117612,137.55,137.53,0.05317088]
[1741484391755,7.2719,137.54,137.53,0.05317088]
[1741484392349,0.05117612,137.55,137.53,0.05317088]
[1741484392853,11.5242054,137.55,137.53,0.05317088]
[1741484393548,26.24,137.54,137.49,11.47302928]
[1741484393752,11.47302928,137.53,137.49,11.47302928]
[1741484394548,7.273,137.52,137.49,11.47302928]
[1741484394749,7.273,137.52,137.5,0.04780636]
[1741484394953,7.31996165,137.52,137.5,0.04780636]
[1741484395655,0.04696165,137.52,137.5,0.04780636]
[1741484398657,0.04696165,137.52,137.51,7.2735]
[1741484399658,0.04696165,137.52,137.5,0.04780636]
[1741484400360,7.31996165,137.52,137.5,0.04780636]
[1741484400758,0.04696165,137.52,137.5,7.32170636]
[1741484401257,0.04696165,137.52,137.5,0.04780636]
[1741484402160,7.32026165,137.52,137.5,0.04780636]
[1741484402757,0.04696165,137.52,137.5,0.04780636]
[1741484403765,7.32026165,137.52,137.5,0.04780636]
[1741484404561,0.04696165,137.52,137.5,0.04780636]
[1741484406265,0.04696165,137.52,137.5,7.32150636]
[1741484406566,0.04696165,137.52,137.5,0.04780636]
[1741484407069,0.04696165,137.52,137.5,11.52083564]
[1741484407468,0.04696165,137.52,137.51,7.2735]
[1741484408767,0.04696165,137.52,137.5,18.79443564]
[1741484410173,0.04696165,137.52,137.5,11.52083564]
[1741484410371,0.04696165,137.52,137.51,7.2735]
[1741484412977,0.04696165,137.52,137.5,37.70083564]
[1741484413173,0.04696165,137.52,137.5,44.97463564]
[1741484414372,0.04696165,137.52,137.5,37.70083564]
[1741484414568,0.04696165,137.52,137.51,7.2735]
[1741484417677,0.04696165,137.52,137.5,44.97463564]
[1741484417974,0.04696165,137.52,137.5,18.79463564]
[1741484418277,0.04696165,137.52,137.5,11.52083564]
[1741484418477,0.04696165,137.52,137.51,7.2735]
[1741484419474,0.04696165,137.52,137.5,11.52083564]
[1741484419674,0.04696165,137.52,137.5,18.79453564]
[1741484419875,0.04696165,137.52,137.5,11.52083564]
[1741484421179,0.04696165,137.52,137.5,0.04780636]
[1741484421180,7.2735,137.51,137.5,0.04780636]
[1741484422377,7.32026165,137.52,137.5,0.04780636]
[1741484422980,7.2735,137.51,137.5,0.04780636]
[1741484429380,0.04696165,137.52,137.5,7.32180636]
[1741484429587,0.04696165,137.52,137.5,11.52083564]
[1741484430085,0.04696165,137.52,137.51,7.2735]
[1741484430485,0.04696165,137.52,137.5,11.52083564]
[1741484430685,0.04696165,137.52,137.5,18.79463564]
[1741484434285,7.32026165,137.52,137.5,11.52083564]
[1741484434483,0.04696165,137.52,137.5,11.52083564]
[1741484435789,7.32026165,137.52,137.5,0.04780636]
[1741484436184,7.2735,137.51,137.5,0.04780636]
[1741484437082,11.51999093,137.52,137.5,0.04780636]
[1741484438090,0.04696165,137.52,137.5,0.04780636]
[1741484439289,7.31996165,137.52,137.5,0.04780636]
[1741484439886,7.2735,137.51,137.5,0.04780636]
[1741484441593,33.2735,137.51,137.5,0.04780636]
[1741484443393,7.2757,137.47,137.45,11.47302928]
[1741484444797,7.3280861,137.47,137.45,11.47302928]
[1741484445395,0.0523861,137.47,137.45,11.47302928]
[1741484446197,7.3280861,137.47,137.45,11.47302928]
[1741484447801,0.0523861,137.47,137.45,11.47302928]
[1741484448495,7.3279861,137.47,137.45,11.47302928]
[1741484448800,0.0523861,137.47,137.45,11.47302928]
[1741484449001,0.0523861,137.47,137.45,18.74952928]
[1741484449300,0.0523861,137.47,137.45,11.47302928]
[1741484452696,7.3281861,137.47,137.45,11.47302928]
[1741484453096,0.0523861,137.47,137.45,11.47302928]
[1741484454001,0.0523861,137.47,137.46,7.2761]
[1741484455095,0.0523861,137.47,137.45,18.74942928]
[1741484455600,0.0523861,137.47,137.46,7.2761]
[1741484461105,17.54822928,137.54,137.5,7.2739]
[1741484461303,43.52822928,137.54,137.5,7.2739]
[1741484462003,7.2728,137.53,137.5,7.2739]
[1741484462304,0.04925956,137.53,137.51,11.52528154]
[1741484462505,0.04925956,137.53,137.51,11.47302928]
[1741484462706,0.04925956,137.53,137.51,11.51887256]
[1741484463807,0.04925956,137.53,137.51,18.79187256]
[1741484464303,0.04925956,137.53,137.51,11.51887256]
[1741484465311,7.32195956,137.53,137.51,11.51887256]
[1741484466210,7.2729,137.52,137.51,0.04584328]
[1741484467810,18.74592928,137.52,137.51,0.04584328]
[1741484470207,26.00925956,137.53,137.51,0.04584328]
[1741484471515,0.04925956,137.53,137.51,11.51887256]
[1741484472617,0.04925956,137.53,137.52,7.2729]
[1741484473309,0.04925956,137.53,137.51,18.79217256]
[1741484474011,0.04925956,137.53,137.51,11.51887256]
[1741484474212,7.32165956,137.53,137.51,11.51887256]
[1741484475618,0.04925956,137.53,137.51,11.51887256]
[1741484475816,0.04925956,137.53,137.51,18.79217256]
[1741484476017,0.04925956,137.53,137.51,11.51887256]
[1741484476220,0.04925956,137.53,137.52,7.2729]
[1741484476415,39.48282928,137.59,137.51,15.51447256]
[1741484476621,7.2704,137.57,137.54,11.47302928]
[1741484477220,7.2688,137.6,137.54,11.47302928]
[1741484477421,37.45302928,137.61,137.57,7.2703]
[1741484477623,37.45302928,137.61,137.56,11.47302928]
[1741484477819,0.05559423,137.6,137.56,11.47302928]
[1741484478020,0.05559423,137.6,137.57,0.05425462]
[1741484478526,7.32429423,137.6,137.57,0.05425462]
[1741484478935,0.05559423,137.6,137.57,0.05425462]
[1741484479433,0.05559423,137.6,137.58,11.47302928]
[1741484481523,0.05559423,137.6,137.57,0.05425462]
[1741484482532,7.32449423,137.6,137.57,0.05425462]
[1741484482734,0.05559423,137.6,137.57,0.05425462]
[1741484484527,7.32429423,137.6,137.57,0.05425462]
[1741484485926,7.2693,137.59,137.57,0.05425462]
[1741484486536,7.2698,137.58,137.57,0.05425462]
[1741484486935,11.52862351,137.6,137.57,0.05425462]
[1741484488229,18.79772351,137.6,137.57,0.05425462]
[1741484488434,7.32469423,137.6,137.57,0.05425462]
[1741484489236,0.05559423,137.6,137.57,0.05425462]
[1741484489932,7.2698,137.58,137.57,0.05425462]
[1741484492640,7.2695,137.59,137.57,0.05425462]
[1741484493342,7.2698,137.58,137.57,0.05425462]
[1741484495934,7.2694,137.59,137.57,0.05425462]
[1741484496938,7.2698,137.58,137.57,0.05425462]
[1741484497641,7.2694,137.59,137.57,0.05425462]
[1741484498641,7.2698,137.58,137.57,0.05425462]
[1741484499345,7.2694,137.59,137.57,0.05425462]
[1741484500245,0.05559423,137.6,137.57,0.05425462]
[1741484500446,7.2698,137.58,137.57,0.05425462]
[1741484501543,7.2695,137.59,137.57,0.05425462]
[1741484502550,0.05559423,137.6,137.59,7.2692]
[1741484502841,32.20421426,137.67,137.59,261.68]
[1741484503043,120.21338563,137.69,137.66,11.47302928]
[1741484503238,111.51024728,137.67,137.6,23.27348837]
[1741484503436,18.53326012,137.67,137.66,7.2655]
[1741484503640,18.53326012,137.67,137.66,37.43302928]
[1741484503840,18.53326012,137.67,137.66,11.47302928]
[1741484505849,18.53326012,137.67,137.65,0.05332524]
[1741484506051,7.31598685,137.68,137.65,0.05332524]
[1741484506544,0.05138685,137.68,137.65,0.05332524]
[1741484508644,7.31598685,137.68,137.65,0.05332524]
[1741484509244,0.05138685,137.68,137.65,0.05332524]
[1741484510346,7.31588685,137.68,137.65,0.05332524]
[1741484512046,0.05138685,137.68,137.65,0.05332524]
[1741484512246,25.94,137.67,137.61,7.268]
[1741484512652,7.2659,137.66,137.61,7.268]
[1741484513454,0.05472658,137.65,137.62,0.05226151]
[1741484513750,7.32082658,137.65,137.62,0.05226151]
[1741484514451,7.32082658,137.65,137.62,7.31986151]
[1741484514653,0.05472658,137.65,137.62,7.31986151]
[1741484514951,0.05472658,137.65,137.62,0.05226151]
[1741484515651,7.32082658,137.65,137.62,0.05226151]
[1741484516249,0.05472658,137.65,137.62,0.05226151]
[1741484516461,7.2666,137.64,137.62,0.05226151]
[1741484519453,0.05472658,137.65,137.62,0.05226151]
[1741484519653,7.2671,137.63,137.62,0.05226151]
[1741484523153,7.2687,137.6,137.59,239.86]
[1741484523458,29.9115,137.64,137.58,17.95431789]
[1741484523657,1.8907,137.63,137.58,17.95431789]
[1741484524257,0.05022978,137.62,137.59,0.05165314]
[1741484524660,0.05022978,137.62,137.6,17.95431789]
[1741484526954,7.31792978,137.62,137.6,17.95431789]
[1741484527155,0.05022978,137.62,137.59,0.05165314]
[1741484527358,0.05022978,137.62,137.6,11.49664722]
[1741484528456,7.2682,137.61,137.6,11.49664722]
[1741484532761,7.31792978,137.62,137.6,11.49664722]
[1741484535854,0.05022978,137.62,137.6,11.49664722]
[1741484536360,0.05022978,137.62,137.61,7.2682]
[1741484536857,25.94,137.68,137.6,11.49664722]
[1741484537062,33.2048,137.68,137.65,11.49664722]
[1741484537558,33.2048,137.68,137.63,7.2666]
[1741484537559,25.94,137.68,137.63,11.49664722]
[1741484537764,25.99179838,137.68,137.65,0.05350356]
[1741484538157,7.2655,137.66,137.65,0.05350356]
[1741484541167,7.2654,137.67,137.65,0.05350356]
[1741484541767,0.05179838,137.68,137.66,7.2655]
[1741484541969,0.05179838,137.68,137.65,11.55015078]
[1741484542171,0.05179838,137.68,137.67,11.49664722]
[1741484543369,0.05179838,137.68,137.67,18.76164722]
[1741484544862,0.05179838,137.68,137.67,11.49664722]
[1741484546567,0.05179838,137.68,137.65,11.55015078]
[1741484547572,0.05179838,137.68,137.67,11.49664722]
[1741484548668,210.14726208,137.77,137.67,11.49664722]
[1741484548870,7.2622,137.73,137.7,11.49664722]
[1741484549572,11.49664722,137.75,137.7,11.49664722]
[1741484549774,17.14726208,137.8,137.7,11.49664722]
[1741484549980,0.05368737,137.74,137.72,11.49664722]
[1741484550180,4.097,137.8,137.73,25.94]
[1741484550481,15.59364722,137.8,137.75,11.49664722]
[1741484550678,0.04911621,137.78,137.75,11.49664722]
[1741484550878,0.04911621,137.78,137.76,0.05567478]
[1741484552079,0.04911621,137.78,137.77,11.49664722]
[1741484554082,0.04911621,137.78,137.76,0.05567478]
[1741484554981,0.04911621,137.78,137.77,11.49664722]
[1741484557186,0.04911621,137.78,137.77,18.75634722]
[1741484557575,30.2073,137.84,137.77,11.49664722]
[1741484557777,30.2073,137.84,137.79,18.75494722]
[1741484557778,37.4637,137.84,137.79,18.75494722]
[1741484557979,3.9473,137.84,137.81,11.49664722]
[1741484558374,11.2037,137.84,137.81,11.49664722]
[1741484558784,3.99440593,137.84,137.81,11.5506913]
[1741484559286,7.2568,137.83,137.81,0.05404408]
[1741484560987,7.2571,137.82,137.81,0.05404408]
[1741484562380,7.2569,137.83,137.81,0.05404408]
[1741484562586,30.23440593,137.84,137.81,0.05404408]
[1741484562989,7.2571,137.82,137.81,0.05404408]
[1741484570195,30.23440593,137.84,137.76,44.15253544]
[1741484570396,7.2595,137.78,137.76,44.15253544]
[1741484570598,7.2595,137.78,137.76,17.91253544]
[1741484571297,7.31098049,137.78,137.76,17.96722576]
[1741484577104,0.05148049,137.78,137.76,17.96722576]
[1741484577294,7.2597,137.77,137.76,0.05469032]
[1741484579904,0.05148049,137.78,137.76,0.05469032]
[1741484580109,7.31068049,137.78,137.76,0.05469032]
[1741484580609,0.05148049,137.78,137.76,17.96722576]
[1741484581300,0.05148049,137.78,137.77,11.4685983]
[1741484586412,7.31068049,137.78,137.77,11.4685983]
[1741484587112,0.05148049,137.78,137.77,11.4685983]
[1741484588709,26.06,137.86,137.77,37.5285983]
[1741484588909,32.0847,137.88,137.83,11.4685983]
[1741484589305,7.2553,137.86,137.83,11.4685983]
[1741484589816,0.04870324,137.86,137.83,11.51546497]
[1741484590317,7.256,137.84,137.83,0.04686667]
[1741484603126,7.2571,137.82,137.81,11.4685983]
[1741484603724,7.2567,137.83,137.81,11.4685983]
[1741484604124,7.31011644,137.83,137.81,11.51480553]
[1741484604530,0.05341644,137.83,137.81,11.51480553]
[1741484605021,0.05341644,137.83,137.81,18.77190553]
[1741484605222,0.05341644,137.83,137.81,11.51480553]
[1741484606427,0.05341644,137.83,137.82,7.2571]
[1741484606824,6.0247,137.88,137.81,11.51480553]
[1741484607129,7.2546,137.87,137.84,11.4685983]
[1741484608030,7.3005391,137.87,137.84,11.52243659]
[1741484608225,0.0459391,137.87,137.84,11.52243659]
[1741484608427,0.0459391,137.87,137.86,11.4685983]
[1741484610637,7.3004391,137.87,137.86,11.4685983]
[1741484611034,0.0459391,137.87,137.86,11.4685983]
[1741484614040,7.3004391,137.87,137.86,11.4685983]
[1741484618942,0.0459391,137.87,137.86,11.4685983]
[1741484620346,7.3004391,137.87,137.86,11.4685983]
[1741484620643,0.0459391,137.87,137.86,11.4685983]
[1741484621145,2.0791,137.96,137.86,37.3685983]
[1741484621341,3.9291,137.95,137.92,11.4685983]
[1741484621540,37.4885983,138.0,137.94,11.4685983]
[1741484621745,7.2491,137.98,137.94,11.4685983]
[1741484622140,37.4885983,138.0,137.94,11.4685983]
[1741484622346,7.29682852,137.97,137.95,0.05024459]
[1741484622941,0.04722852,137.97,137.95,0.05024459]
[1741484623141,0.04722852,137.97,137.96,11.4685983]
[1741484626544,7.2466,138.02,137.96,11.4685983]
[1741484626740,7.2466,138.02,137.99,11.4685983]
[1741484627246,17.3794983,138.07,138.01,11.4685983]